[Event "GER-ch Youth-U10 2022"]
[Site "Willingen"]
[Date "2022.06.05"]
[Round "1.1"]
[White "Nezhyvenko, Mykhaylo"]
[Black "Fischermann, Simon"]
[Result "1-0"]
[ECO "C50"]
[WhiteElo "1488"]
[BlackElo "1344"]
[Annotator "NA RC COMBH"]
[PlyCount "97"]
[EventDate "2022.06.05"]
[EventType "swiss"]
[EventRounds "11"]
[EventCountry "GER"]
[SourceTitle "playchess.com"]
[Source "ChessBase"]
[SourceQuality "1"]
[TimeControl "40/4500+30:900+30"]

1. e4 {[%emt 0:00:04]} e5 {[%emt 0:00:30]} 2. Nf3 {[%emt 0:00:18]} Nc6 {[%emt 0:00:13]} 3. Bc4 {[%emt 0:00:06]} d6 {[%emt 0:00:41]} 4. c3 {[%emt 0:00:16]} Bg4 {[%emt 0:00:17]} 5. Be2 {[%emt 0:00:13]} Bxf3 {[%emt 0:00:19]} 6. Bxf3 {[%emt 0:00:00]} Nf6 {[%emt 0:00:46]} 7. O-O {[%emt 0:00:10]} Be7 {[%emt 0:00:51]} 8. d4 {[%emt 0:00:07]} O-O {[%emt 0:00:30]} 9. d5 {[%emt 0:00:35]} Nb8 {[%emt 0:00:22]} 10. Re1 {[%emt 0:00:19]} c6 {[%emt 0:02:08]} 11. c4 {[%emt 0:00:03]} b5 {[%emt 0:01:39]} 12. dxc6 {[%emt 0:01:25]} bxc4 {[%emt 0:00:25]} 13. Qa4 {[%emt 0:00:02]} Qb6 {[%emt 0:00:39]} 14. Qxc4 {[%emt 0:00:02]} Qxc6 {[%emt 0:00:15]} 15. Qxc6 {[%emt 0:00:11]} Nxc6 {[%emt 0:00:10]} 16. Nc3 {[%emt 0:00:02]} Nd4 {[%emt 0:00:29]} 17. Rd1 {[%emt 0:00:55]} Nxf3+ {[%emt 0:01:56]} 18. gxf3 {[%emt 0:00:02]} h6 {[%emt 0:00:54]} 19. Be3 {[%emt 0:00:35]} a6 {[%emt 0:00:40]} 20. Rac1 {[%emt 0:01:10]} Rfc8 {[%emt 0:04:59]} 21. Rc2 {[%emt 0:00:16]} Rc6 {[%emt 0:00:55]} 22. Rcd2 {[%emt 0:01:13]} Rac8 {[%emt 0:01:38]} 23. Kf1 {[%emt 0:00:01]} Kh7 {[%emt 0:00:29]} 24. Ke2 {[%emt 0:00:10]} Rc4 {[%emt 0:00:55]} 25. a3 {[%emt 0:01:08]} g5 {[%emt 0:02:10]} 26. Rg1 {[%emt 0:00:13]} R8c6 {[%emt 0:06:26]} 27. Rd3 {[%emt 0:04:14]} Bd8 {[%emt 0:02:15]} 28. Kd2 {[%emt 0:01:28]} Ba5 {[%emt 0:03:06]} 29. b4 {[%emt 0:00:37]} Bc7 {[%emt 0:04:57]} 30. h3 {[%emt 0:01:47]} Nd7 {[%emt 0:02:55]} 31. Kc2 {[%emt 0:02:46]} Bb6 {[%emt 0:01:33]} 32. Bxb6 {[%emt 0:03:36]} Nxb6 {[%emt 0:00:28]} 33. Kb3 {[%emt 0:00:01]} Nc8 {[%emt 0:04:20]} 34. Rgd1 {[%emt 0:02:10]} Kg6 {[%emt 0:01:22]} 35. a4 {[%emt 0:02:21]} Kh5 {[%emt 0:00:56]} 36. b5 {[%emt 0:01:58]} axb5 {[%emt 0:00:15]} 37. axb5 {[%emt 0:00:39]} Rc7 {[%emt 0:01:27]} 38. Nd5 {[%emt 0:00:50]} R7c5 {[%emt 0:01:37]} 39. b6 {[%emt 0:00:11]} Rd4 {[%emt 0:01:35]} 40. Rxd4 {[%emt 0:00:17]} exd4 {[%emt 0:00:19]} 41. Rxd4 {[%emt 0:00:03]} Nxb6 {[%emt 0:16:51]} 42. Nxb6 {[%emt 0:15:30]} Rb5+ {[%emt 0:00:12]} 43. Rb4 {[%emt 0:00:39]} Rxb4+ {[%emt 0:00:06]} 44. Kxb4 {[%emt 0:00:12]} Kh4 {[%emt 0:00:10]} 45. Nc8 {[%emt 0:02:43]} Kxh3 {[%emt 0:00:22]} 46. Nxd6 {[%emt 0:00:05]} Kg2 {[%emt 0:03:21]} 47. Nxf7 {[%emt 0:00:08]} Kxf3 {[%emt 0:00:14]} 48. e5 {[%emt 0:00:00]} Kxf2 {[%emt 0:01:14]} 49. Nxh6 {[%emt 0:00:31]} 1-0

[Event "GER-ch Youth-U10 2022"]
[Site "Willingen"]
[Date "2022.06.05"]
[Round "1.2"]
[White "Hagn, Tobias"]
[Black "Kateryniuk, Ivan"]
[Result "0-1"]
[ECO "C42"]
[WhiteElo "1337"]
[BlackElo "1187"]
[Annotator "NA RC COMBH"]
[PlyCount "150"]
[EventDate "2022.06.05"]
[EventType "swiss"]
[EventRounds "11"]
[EventCountry "GER"]
[SourceTitle "playchess.com"]
[Source "ChessBase"]
[SourceQuality "1"]
[TimeControl "40/4500+30:900+30"]

1. e4 {[%emt 0:00:07]} e5 {[%emt 0:00:02]} 2. Nf3 {[%emt 0:00:14]} Nf6 {[%emt 0:00:08]} 3. Nxe5 {[%emt 0:00:32]} d6 {[%emt 0:00:05]} 4. Nf3 {[%emt 0:00:23]} Nxe4 {[%emt 0:00:06]} 5. Nc3 {[%emt 0:00:51]} Nxc3 {[%emt 0:00:07]} 6. dxc3 {[%emt 0:00:10]} Be7 {[%emt 0:00:04]} 7. Bd3 {[%emt 0:00:32]} Nd7 {[%emt 0:00:09]} 8. O-O {[%emt 0:00:40]} Nc5 {[%emt 0:00:32]} 9. Be2 {[%emt 0:02:05]} Bd7 {[%emt 0:02:00]} 10. Re1 {[%emt 0:01:34]} O-O {[%emt 0:01:03]} 11. Be3 {[%emt 0:01:38]} Ne4 {[%emt 0:01:55]} 12. Bd3 {[%emt 0:02:44]} Nf6 {[%emt 0:00:30]} 13. Nd4 {[%emt 0:01:13]} d5 {[%emt 0:03:30]} 14. Nf5 {[%emt 0:03:35]} Ne4 {[%emt 0:09:46]} 15. Nxe7+ {[%emt 0:02:29]} Qxe7 {[%emt 0:00:11]} 16. f3 {[%emt 0:00:50]} Nf6 {[%emt 0:07:17]} 17. Bxa7 {[%emt 0:01:21]} Qd6 {[%emt 0:01:23]} 18. Bd4 {[%emt 0:00:51]} Nh5 {[%emt 0:05:02]} 19. Be5 {[%emt 0:02:45]} Qb6+ {[%emt 0:00:09]} 20. Kh1 {[%emt 0:01:23]} Rfe8 {[%emt 0:06:31]} 21. b3 {[%emt 0:03:40]} Qh6 {[%emt 0:01:33]} 22. Kg1 {[%emt 0:09:22]} Qg5 {[%emt 0:04:56]} 23. Bxc7 {[%emt 0:03:10]} Rac8 {[%emt 0:06:40]} 24. Rxe8+ {[%emt 0:00:52]} Rxe8 {[%emt 0:00:36]} 25. Qf1 {[%emt 0:02:13]} Rc8 {[%emt 0:08:26]} 26. Bb6 {[%emt 0:03:56]} Bh3 {[%emt 0:06:56]} 27. Qf2 {[%emt 0:02:08]} Re8 {[%emt 0:01:40]} 28. Bf1 {[%emt 0:01:25]} Nf4 {[%emt 0:04:59]} 29. Qg3 {[%emt 0:00:23]} Qh6 {[%emt 0:01:25]} 30. gxh3 {[%emt 0:00:25]} Qxb6+ {[%emt 0:00:11]} 31. Kh1 {[%emt 0:00:40]} Qe3 {[%emt 0:01:29]} 32. Rd1 {[%emt 0:03:28]} Re6 {[%emt 0:00:50]} 33. Bd3 {[%emt 0:01:11]} h5 {[%emt 0:03:20]} 34. Rg1 {[%emt 0:00:56]} g6 {[%emt 0:01:43]} 35. Bf1 {[%emt 0:01:45]} h4 {[%emt 0:02:16]} 36. Qg4 {[%emt 0:00:55]} f5 {[%emt 0:02:43]} 37. Qg5 {[%emt 0:01:00]} Qxf3+ {[%emt 0:00:41]} 38. Bg2 {[%emt 0:00:16]} Qe3 {[%emt 0:02:02]} 39. Qd8+ {[%emt 0:00:53]} Re8 {[%emt 0:00:37]} 40. Bxd5+ {[%emt 0:00:56]} Kg7 {[%emt 0:00:11]} 41. Qc7+ {[%emt 0:16:25]} Re7 {[%emt 0:15:10]} 42. Qc4 {[%emt 0:00:36]} Nxh3 {[%emt 0:00:28]} 43. Qd4+ {[%emt 0:02:31]} Qxd4 {[%emt 0:00:06]} 44. cxd4 {[%emt 0:00:20]} Nxg1 {[%emt 0:00:03]} 45. Kxg1 {[%emt 0:00:20]} Re2 {[%emt 0:00:18]} 46. Bxb7 {[%emt 0:00:34]} Rxc2 {[%emt 0:00:14]} 47. a4 {[%emt 0:00:35]} Rb2 {[%emt 0:00:09]} 48. a5 {[%emt 0:00:45]} Rxb3 {[%emt 0:00:10]} 49. a6 {[%emt 0:00:00]} Ra3 {[%emt 0:00:04]} 50. Kf2 {[%emt 0:00:09]} Kf6 {[%emt 0:00:11]} 51. Ke2 {[%emt 0:00:10]} f4 {[%emt 0:00:10]} 52. h3 {[%emt 0:00:14]} Ke6 {[%emt 0:00:17]} 53. Kd2 {[%emt 0:00:43]} Kd6 {[%emt 0:00:13]} 54. Ke2 {[%emt 0:00:10]} Kc7 {[%emt 0:00:09]} 55. Be4 {[%emt 0:00:16]} g5 {[%emt 0:00:15]} 56. a7 {[%emt 0:00:37]} Rxa7 {[%emt 0:00:12]} 57. Kf3 {[%emt 0:00:19]} Ra3+ {[%emt 0:00:07]} 58. Kg4 {[%emt 0:00:19]} Rg3+ {[%emt 0:00:09]} 59. Kf5 {[%emt 0:00:34]} f3 {[%emt 0:00:11]} 60. Bd3 {[%emt 0:00:31]} f2 {[%emt 0:00:06]} 61. Be2 {[%emt 0:01:02]} Rxh3 {[%emt 0:00:18]} 62. Kxg5 {[%emt 0:00:21]} Rh1 {[%emt 0:00:12]} 63. Kg4 {[%emt 0:00:13]} f1=Q {[%emt 0:00:16]} 64. Bxf1 {[%emt 0:00:19]} Rxf1 {[%emt 0:00:03]} 65. Kxh4 {[%emt 0:00:13]} Rg1 {[%emt 0:00:04]} 66. d5 {[%emt 0:00:12]} Kd6 {[%emt 0:00:06]} 67. Kh3 {[%emt 0:00:05]} Kxd5 {[%emt 0:00:08]} 68. Kh2 {[%emt 0:00:04]} Rg8 {[%emt 0:00:07]} 69. Kh3 {[%emt 0:00:05]} Ke4 {[%emt 0:00:10]} 70. Kh4 {[%emt 0:00:08]} Kf4 {[%emt 0:00:06]} 71. Kh3 {[%emt 0:00:14]} Rg4 {[%emt 0:00:08]} 72. Kh2 {[%emt 0:00:09]} Rg3 {[%emt 0:00:11]} 73. Kh1 {[%emt 0:00:06]} Kf3 {[%emt 0:00:28]} 74. Kh2 {[%emt 0:00:07]} Kf2 {[%emt 0:00:08]} 75. Kh1 {[%emt 0:00:06]} Rh3# {[%emt 0:00:05]} 0-1

[Event "GER-ch Youth-U10 2022"]
[Site "Willingen"]
[Date "2022.06.05"]
[Round "1.3"]
[White "Shen, Tingrui"]
[Black "Hellriegel, Hannes"]
[Result "1-0"]
[ECO "D37"]
[WhiteElo "1621"]
[BlackElo "1335"]
[Annotator "NA RC COMBH"]
[PlyCount "61"]
[EventDate "2022.06.05"]
[EventType "swiss"]
[EventRounds "11"]
[EventCountry "GER"]
[SourceTitle "playchess.com"]
[Source "ChessBase"]
[SourceQuality "1"]
[TimeControl "40/4500+30:900+30"]

1. d4 {[%emt 0:00:09]} d5 {[%emt 0:00:22]} 2. c4 {[%emt 0:00:59]} e6 {[%emt 0:00:25]} 3. Nc3 {[%emt 0:00:32]} Nf6 {[%emt 0:00:27]} 4. Nf3 {[%emt 0:00:44]} Bd6 {[%emt 0:01:13]} 5. Bg5 {[%emt 0:01:36]} h6 {[%emt 0:00:32]} 6. Bxf6 {[%emt 0:01:48]} Qxf6 {[%emt 0:00:40]} 7. cxd5 {[%emt 0:00:32]} exd5 {[%emt 0:01:04]} 8. Nxd5 {[%emt 0:00:30]} Qe6 {[%emt 0:01:05]} 9. Nc3 {[%emt 0:00:51]} Bb4 {[%emt 0:01:30]} 10. e3 {[%emt 0:02:26]} c6 {[%emt 0:01:48]} 11. Bd3 {[%emt 0:01:10]} Nd7 {[%emt 0:01:49]} 12. O-O {[%emt 0:01:41]} Nf6 {[%emt 0:00:48]} 13. e4 {[%emt 0:02:18]} O-O {[%emt 0:00:58]} 14. d5 {[%emt 0:03:23]} Qd7 {[%emt 0:01:47]} 15. dxc6 {[%emt 0:00:31]} bxc6 {[%emt 0:03:36]} 16. Qc2 {[%emt 0:02:22]} Rd8 {[%emt 0:02:28]} 17. Rfd1 {[%emt 0:02:34]} Kf8 {[%emt 0:02:24]} 18. Bc4 {[%emt 0:03:15]} Qc7 {[%emt 0:01:05]} 19. e5 {[%emt 0:03:00]} Rxd1+ {[%emt 0:00:49]} 20. Rxd1 {[%emt 0:00:15]} Ng8 {[%emt 0:01:09]} 21. Ne4 {[%emt 0:02:39]} Bb7 {[%emt 0:01:38]} 22. Nd6 {[%emt 0:01:23]} Bxd6 {[%emt 0:00:57]} 23. exd6 {[%emt 0:00:17]} Qd8 {[%emt 0:02:17]} 24. Ne5 {[%emt 0:01:18]} Qg5 {[%emt 0:05:35]} 25. Nxf7 {[%emt 0:00:37]} Qg4 {[%emt 0:00:44]} 26. h3 {[%emt 0:00:33]} Qd7 {[%emt 0:01:39]} 27. Ne5 {[%emt 0:00:21]} Qd8 {[%emt 0:00:56]} 28. Qf5+ {[%emt 0:00:37]} Nf6 {[%emt 0:00:35]} 29. Ng6+ {[%emt 0:00:07]} Ke8 {[%emt 0:01:19]} 30. Qe6+ {[%emt 0:00:06]} Qe7 {[%emt 0:00:23]} 31. Qxe7# {[%emt 0:00:06]} 1-0

[Event "GER-ch Youth-U10 2022"]
[Site "Willingen"]
[Date "2022.06.05"]
[Round "1.4"]
[White "Wagener, Nicolas"]
[Black "Zhang, Yibo"]
[Result "0-1"]
[ECO "C54"]
[WhiteElo "1315"]
[BlackElo "1436"]
[Annotator "NA RC COMBH"]
[PlyCount "58"]
[EventDate "2022.06.05"]
[EventType "swiss"]
[EventRounds "11"]
[EventCountry "GER"]
[SourceTitle "playchess.com"]
[Source "ChessBase"]
[SourceQuality "1"]
[TimeControl "40/4500+30:900+30"]

1. e4 {[%emt 0:00:02]} e5 {[%emt 0:00:08]} 2. Nf3 {[%emt 0:00:06]} Nc6 {[%emt 0:00:06]} 3. Bc4 {[%emt 0:00:12]} Bc5 {[%emt 0:00:14]} 4. c3 {[%emt 0:00:05]} Nf6 {[%emt 0:00:06]} 5. d4 {[%emt 0:00:05]} exd4 {[%emt 0:00:06]} 6. e5 {[%emt 0:00:04]} d5 {[%emt 0:00:08]} 7. Bb5 {[%emt 0:00:06]} Ne4 {[%emt 0:00:10]} 8. cxd4 {[%emt 0:00:16]} Bb6 {[%emt 0:00:18]} 9. O-O {[%emt 0:00:27]} O-O {[%emt 0:01:06]} 10. Bxc6 {[%emt 0:00:22]} bxc6 {[%emt 0:00:08]} 11. Qc2 {[%emt 0:00:46]} Ba6 {[%emt 0:06:14]} 12. Re1 {[%emt 0:00:42]} c5 {[%emt 0:00:51]} 13. Be3 {[%emt 0:00:34]} cxd4 {[%emt 0:01:33]} 14. Nxd4 {[%emt 0:01:06]} c5 {[%emt 0:01:46]} 15. Nb3 {[%emt 0:00:08]} f6 {[%emt 0:15:01]} 16. f3 {[%emt 0:00:30]} fxe5 {[%emt 0:02:15]} 17. fxe4 {[%emt 0:00:17]} d4 {[%emt 0:04:01]} 18. Rd1 {[%emt 0:01:45]} Qf6 {[%emt 0:02:11]} 19. Bf2 {[%emt 0:00:13]} c4 {[%emt 0:02:12]} 20. Nc1 {[%emt 0:00:36]} d3 {[%emt 0:07:14]} 21. Qd2 {[%emt 0:00:41]} Bxf2+ {[%emt 0:01:09]} 22. Kh1 {[%emt 0:00:17]} Bd4 {[%emt 0:02:16]} 23. h3 {[%emt 0:00:27]} Bb7 {[%emt 0:03:21]} 24. Re1 {[%emt 0:00:23]} Bf2 {[%emt 0:04:55]} 25. Rf1 {[%emt 0:00:17]} Bxe4 {[%emt 0:00:22]} 26. Nc3 {[%emt 0:00:17]} Bxg2+ {[%emt 0:00:10]} 27. Kxg2 {[%emt 0:00:12]} Qf3+ {[%emt 0:00:14]} 28. Kh2 {[%emt 0:00:13]} Qg3+ {[%emt 0:00:19]} 29. Kh1 {[%emt 0:00:08]} Qxh3# {[%emt 0:00:07]} 0-1

[Event "GER-ch Youth-U10 2022"]
[Site "Willingen"]
[Date "2022.06.05"]
[Round "1.5"]
[White "Peglau, Paul David"]
[Black "Lanert, Theodor"]
[Result "1/2-1/2"]
[ECO "E85"]
[WhiteElo "1623"]
[BlackElo "1306"]
[Annotator "NA RC COMBH"]
[PlyCount "152"]
[EventDate "2022.06.05"]
[EventType "swiss"]
[EventRounds "11"]
[EventCountry "GER"]
[SourceTitle "playchess.com"]
[Source "ChessBase"]
[SourceQuality "1"]
[TimeControl "40/4500+30:900+30"]

1. d4 {[%emt 0:00:09]} Nf6 {[%emt 0:00:05]} 2. c4 {[%emt 0:00:06]} g6 {[%emt 0:00:08]} 3. f3 {[%emt 0:00:15]} Bg7 {[%emt 0:00:34]} 4. e4 {[%emt 0:00:05]} d6 {[%emt 0:00:05]} 5. Nc3 {[%emt 0:00:10]} O-O {[%emt 0:00:15]} 6. Be3 {[%emt 0:00:59]} e5 {[%emt 0:00:18]} 7. Nge2 {[%emt 0:01:28]} Nc6 {[%emt 0:00:46]} 8. Rc1 {[%emt 0:05:00]} Ne8 {[%emt 0:06:08]} 9. dxe5 {[%emt 0:05:22]} Nxe5 {[%emt 0:01:11]} 10. Nd4 {[%emt 0:01:06]} f5 {[%emt 0:03:50]} 11. exf5 {[%emt 0:09:06]} Bxf5 {[%emt 0:00:17]} 12. Nxf5 {[%emt 0:01:53]} Rxf5 {[%emt 0:01:29]} 13. Be2 {[%emt 0:05:35]} Kh8 {[%emt 0:01:08]} 14. O-O {[%emt 0:02:15]} Qe7 {[%emt 0:04:46]} 15. Nd5 {[%emt 0:08:26]} Qd8 {[%emt 0:05:06]} 16. Qb3 {[%emt 0:03:20]} Rf7 {[%emt 0:04:32]} 17. Rfd1 {[%emt 0:06:03]} b6 {[%emt 0:04:47]} 18. Nf4 {[%emt 0:06:25]} Qe7 {[%emt 0:04:57]} 19. Nd5 {[%emt 0:09:37]} Qd8 {[%emt 0:00:02]} 20. f4 {[%emt 0:03:00]} Nd7 {[%emt 0:01:09]} 21. c5 {[%emt 0:03:02]} Rf8 {[%emt 0:05:18]} 22. cxd6 {[%emt 0:03:06]} cxd6 {[%emt 0:00:01]} 23. Bf3 {[%emt 0:01:32]} Rc8 {[%emt 0:06:38]} 24. Rxc8 {[%emt 0:00:50]} Qxc8 {[%emt 0:00:01]} 25. Rc1 {[%emt 0:00:42]} Nc5 {[%emt 0:00:57]} 26. Ne7 {[%emt 0:01:05]} Qd7 {[%emt 0:00:43]} 27. Bxc5 {[%emt 0:01:21]} dxc5 {[%emt 0:01:48]} 28. Nd5 {[%emt 0:01:05]} Bd4+ {[%emt 0:00:17]} 29. Kh1 {[%emt 0:00:12]} Nf6 {[%emt 0:00:32]} 30. Nxf6 {[%emt 0:00:42]} Bxf6 {[%emt 0:00:02]} 31. Rd1 {[%emt 0:00:45]} Qe7 {[%emt 0:01:06]} 32. Qc2 {[%emt 0:01:29]} Re8 {[%emt 0:01:48]} 33. Qd2 {[%emt 0:00:56]} Rd8 {[%emt 0:01:19]} 34. Qxd8+ {[%emt 0:01:02]} Qxd8 {[%emt 0:00:01]} 35. Rxd8+ {[%emt 0:00:02]} Bxd8 {[%emt 0:00:00]} 36. Kg1 {[%emt 0:00:36]} Kg7 {[%emt 0:00:13]} 37. Kf2 {[%emt 0:00:12]} Kf6 {[%emt 0:00:13]} 38. Ke3 {[%emt 0:00:12]} h5 {[%emt 0:00:23]} 39. Ke4 {[%emt 0:00:33]} Ke6 {[%emt 0:00:01]} 40. Be2 {[%emt 0:00:33]} Bf6 {[%emt 0:00:16]} 41. b3 {[%emt 0:15:21]} Bd4 {[%emt 0:16:01]} 42. Ba6 {[%emt 0:00:00]} Bg1 {[%emt 0:00:00]} 43. h3 {[%emt 0:00:00]} Bd4 {[%emt 0:00:00]} 44. g4 {[%emt 0:00:00]} hxg4 {[%emt 0:00:00]} 45. hxg4 {[%emt 0:00:00]} Kf6 {[%emt 0:00:00]} 46. g5+ {[%emt 0:00:00]} Ke6 {[%emt 0:00:00]} 47. Bc8+ {[%emt 0:00:00]} Kf7 {[%emt 0:00:00]} 48. f5 {[%emt 0:00:00]} gxf5+ {[%emt 0:00:00]} 49. Kxf5 {[%emt 0:00:00]} b5 {[%emt 0:00:00]} 50. Ba6 {[%emt 0:00:00]} b4 {[%emt 0:00:00]} 51. g6+ {[%emt 0:00:00]} Kg7 {[%emt 0:00:00]} 52. Bd3 {[%emt 0:00:00]} Bg1 {[%emt 0:00:00]} 53. Ke6 {[%emt 0:00:00]} Bd4 {[%emt 0:00:00]} 54. Kd7 {[%emt 0:00:00]} Kf6 {[%emt 0:00:00]} 55. Kc6 {[%emt 0:00:00]} Kg7 {[%emt 0:00:00]} 56. Kb7 {[%emt 0:00:00]} Kf6 {[%emt 0:00:00]} 57. Ka6 {[%emt 0:00:19]} Kg7 {[%emt 0:00:00]} 58. Bc2 {[%emt 0:00:26]} Kf6 {[%emt 0:00:00]} 59. Kxa7 {[%emt 0:01:07]} Kg7 {[%emt 0:00:00]} 60. Ka6 {[%emt 0:00:24]} Kf6 {[%emt 0:00:00]} 61. Kb5 {[%emt 0:00:17]} Kg7 {[%emt 0:00:00]} 62. Ka4 {[%emt 0:00:22]} Bb2 {[%emt 0:00:00]} 63. Kb5 {[%emt 0:00:44]} Bd4 {[%emt 0:00:00]} 64. Kc4 {[%emt 0:00:10]} Kf6 {[%emt 0:00:00]} 65. Be4 {[%emt 0:00:11]} Kg7 {[%emt 0:00:00]} 66. Kd5 {[%emt 0:00:13]} Kf6 {[%emt 0:00:00]} 67. Kd6 {[%emt 0:00:24]} Kg7 {[%emt 0:00:00]} 68. Ke6 {[%emt 0:00:25]} Bg1 {[%emt 0:00:00]} 69. Kd5 {[%emt 0:00:39]} Kf6 {[%emt 0:00:00]} 70. Kc4 {[%emt 0:00:10]} Bd4 {[%emt 0:00:00]} 71. Kd3 {[%emt 0:00:19]} Kg7 {[%emt 0:00:00]} 72. Kc4 {[%emt 0:00:07]} Kf6 {[%emt 0:00:00]} 73. Kb5 {[%emt 0:00:04]} Kg7 {[%emt 0:00:00]} 74. Ka4 {[%emt 0:00:01]} Bb2 {[%emt 0:00:00]} 75. Kb5 {[%emt 0:00:29]} Bd4 {[%emt 0:00:00]} 76. Ka4 {[%emt 0:00:09]} Bb2 {[%emt 0:00:03]} 1/2-1/2

[Event "GER-ch Youth-U10 2022"]
[Site "Willingen"]
[Date "2022.06.05"]
[Round "1.6"]
[White "Rinke, Alexander"]
[Black "Vartanian, Roman"]
[Result "0-1"]
[ECO "B80"]
[WhiteElo "1292"]
[BlackElo "1511"]
[Annotator "NA RC COMBH"]
[PlyCount "94"]
[EventDate "2022.06.05"]
[EventType "swiss"]
[EventRounds "11"]
[EventCountry "GER"]
[SourceTitle "playchess.com"]
[Source "ChessBase"]
[SourceQuality "1"]
[TimeControl "40/4500+30:900+30"]

1. e4 {[%emt 0:00:02]} c5 {[%emt 0:00:12]} 2. Nf3 {[%emt 0:00:04]} d6 {[%emt 0:00:09]} 3. Bb5+ {[%emt 0:00:06]} Bd7 {[%emt 0:00:36]} 4. Bxd7+ {[%emt 0:00:21]} Nxd7 {[%emt 0:00:04]} 5. O-O {[%emt 0:00:12]} Ngf6 {[%emt 0:00:14]} 6. Nc3 {[%emt 0:01:06]} e6 {[%emt 0:00:07]} 7. d4 {[%emt 0:02:50]} cxd4 {[%emt 0:00:46]} 8. Nxd4 {[%emt 0:00:36]} a6 {[%emt 0:00:48]} 9. Bg5 {[%emt 0:01:02]} Be7 {[%emt 0:00:06]} 10. Qf3 {[%emt 0:02:48]} Ne5 {[%emt 0:00:33]} 11. Qe2 {[%emt 0:02:00]} Ned7 {[%emt 0:01:37]} 12. Rad1 {[%emt 0:00:43]} O-O {[%emt 0:01:27]} 13. Rfe1 {[%emt 0:02:30]} Qb6 {[%emt 0:05:27]} 14. Nb3 {[%emt 0:01:59]} Rfd8 {[%emt 0:01:33]} 15. Qe3 {[%emt 0:02:37]} Rac8 {[%emt 0:01:46]} 16. Qxb6 {[%emt 0:09:43]} Nxb6 {[%emt 0:00:04]} 17. f4 {[%emt 0:00:17]} e5 {[%emt 0:00:54]} 18. Nd2 {[%emt 0:05:05]} h6 {[%emt 0:01:10]} 19. Bxf6 {[%emt 0:06:58]} Bxf6 {[%emt 0:00:00]} 20. fxe5 {[%emt 0:00:31]} Bxe5 {[%emt 0:00:00]} 21. Re3 {[%emt 0:03:40]} Bd4 {[%emt 0:00:00]} 22. Kf2 {[%emt 0:00:23]} Bxe3+ {[%emt 0:01:04]} 23. Kxe3 {[%emt 0:00:13]} d5 {[%emt 0:00:29]} 24. Ne2 {[%emt 0:01:51]} dxe4 {[%emt 0:00:52]} 25. Kxe4 {[%emt 0:01:35]} Nc4 {[%emt 0:00:10]} 26. Nxc4 {[%emt 0:01:15]} Rxd1 {[%emt 0:00:16]} 27. Ne3 {[%emt 0:00:44]} Re8+ {[%emt 0:00:46]} 28. Kf3 {[%emt 0:02:41]} Rd6 {[%emt 0:00:11]} 29. Ng4 {[%emt 0:01:14]} h5 {[%emt 0:00:20]} 30. Nf2 {[%emt 0:02:16]} Rf6+ {[%emt 0:00:39]} 31. Kg3 {[%emt 0:00:32]} Rxe2 {[%emt 0:00:27]} 32. Nd3 {[%emt 0:00:21]} g5 {[%emt 0:00:15]} 33. h3 {[%emt 0:02:01]} Re3+ {[%emt 0:00:46]} 34. Kh2 {[%emt 0:00:11]} Rxd3 {[%emt 0:00:05]} 35. cxd3 {[%emt 0:00:04]} Rf2 {[%emt 0:00:37]} 36. d4 {[%emt 0:00:03]} Rxb2 {[%emt 0:00:14]} 37. d5 {[%emt 0:00:46]} Rxa2 {[%emt 0:00:27]} 38. d6 {[%emt 0:00:11]} h4 {[%emt 0:00:08]} 39. d7 {[%emt 0:00:06]} Rd2 {[%emt 0:00:04]} 40. d8=Q+ {[%emt 0:00:52]} Rxd8 {[%emt 0:00:44]} 41. g4 {[%emt 0:00:18]} Rd2+ {[%emt 0:00:07]} 42. Kg1 {[%emt 0:00:12]} b5 {[%emt 0:00:09]} 43. Kf1 {[%emt 0:00:13]} b4 {[%emt 0:00:11]} 44. Ke1 {[%emt 0:00:08]} Rc2 {[%emt 0:00:08]} 45. Kd1 {[%emt 0:00:05]} b3 {[%emt 0:00:07]} 46. Ke1 {[%emt 0:00:19]} b2 {[%emt 0:00:08]} 47. Kf1 {[%emt 0:00:09]} b1=Q# {[%emt 0:00:11]} 0-1

[Event "GER-ch Youth-U10 2022"]
[Site "Willingen"]
[Date "2022.06.05"]
[Round "1.7"]
[White "Li, Yunqi"]
[Black "Heitmann, Erik"]
[Result "0-1"]
[ECO "B92"]
[WhiteElo "1312"]
[BlackElo "1287"]
[Annotator "NA RC COMBH"]
[PlyCount "116"]
[EventDate "2022.06.05"]
[EventType "swiss"]
[EventRounds "11"]
[EventCountry "GER"]
[SourceTitle "playchess.com"]
[Source "ChessBase"]
[SourceQuality "1"]
[TimeControl "40/4500+30:900+30"]

1. e4 {[%emt 0:00:01]} c5 {[%emt 0:00:08]} 2. Nf3 {[%emt 0:00:05]} d6 {[%emt 0:00:20]} 3. d4 {[%emt 0:00:07]} cxd4 {[%emt 0:00:46]} 4. Nxd4 {[%emt 0:00:09]} Nf6 {[%emt 0:00:25]} 5. Nc3 {[%emt 0:00:07]} a6 {[%emt 0:00:32]} 6. Be3 {[%emt 0:00:07]} e5 {[%emt 0:01:10]} 7. Nb3 {[%emt 0:00:14]} Be7 {[%emt 0:00:48]} 8. Be2 {[%emt 0:00:25]} O-O {[%emt 0:00:36]} 9. Qd2 {[%emt 0:00:14]} Be6 {[%emt 0:02:07]} 10. f3 {[%emt 0:01:06]} Nbd7 {[%emt 0:02:44]} 11. g4 {[%emt 0:00:14]} b5 {[%emt 0:02:19]} 12. a3 {[%emt 0:00:12]} Rc8 {[%emt 0:02:36]} 13. h4 {[%emt 0:02:00]} Nc5 {[%emt 0:04:52]} 14. Nxc5 {[%emt 0:00:35]} dxc5 {[%emt 0:01:43]} 15. Qxd8 {[%emt 0:04:44]} Rfxd8 {[%emt 0:00:15]} 16. O-O {[%emt 0:00:52]} Ne8 {[%emt 0:02:02]} 17. Rfd1 {[%emt 0:00:56]} Bxh4 {[%emt 0:01:23]} 18. Rxd8 {[%emt 0:01:09]} Bxd8 {[%emt 0:00:20]} 19. Rd1 {[%emt 0:00:25]} Be7 {[%emt 0:01:14]} 20. a4 {[%emt 0:01:33]} b4 {[%emt 0:03:02]} 21. Nd5 {[%emt 0:00:20]} Bxd5 {[%emt 0:00:52]} 22. exd5 {[%emt 0:01:48]} a5 {[%emt 0:00:32]} 23. Kf2 {[%emt 0:01:47]} h6 {[%emt 0:04:26]} 24. b3 {[%emt 0:00:05]} Nd6 {[%emt 0:00:09]} 25. Bc4 {[%emt 0:01:20]} Nxc4 {[%emt 0:00:55]} 26. bxc4 {[%emt 0:00:40]} Bg5 {[%emt 0:02:22]} 27. Bxg5 {[%emt 0:00:51]} hxg5 {[%emt 0:00:10]} 28. Ke3 {[%emt 0:00:20]} f6 {[%emt 0:00:13]} 29. Ke4 {[%emt 0:00:47]} Kf7 {[%emt 0:00:36]} 30. Rh1 {[%emt 0:00:53]} Rg8 {[%emt 0:02:53]} 31. Rh2 {[%emt 0:00:40]} Rb8 {[%emt 0:01:04]} 32. Rd2 {[%emt 0:04:20]} g6 {[%emt 0:03:24]} 33. Rd3 {[%emt 0:00:17]} Rd8 {[%emt 0:01:32]} 34. Rd2 {[%emt 0:02:09]} Rh8 {[%emt 0:01:37]} 35. d6 {[%emt 0:01:44]} Ke6 {[%emt 0:00:11]} 36. Rd5 {[%emt 0:01:02]} f5+ {[%emt 0:00:20]} 37. gxf5+ {[%emt 0:00:43]} gxf5+ {[%emt 0:00:17]} 38. Ke3 {[%emt 0:00:13]} Rd8 {[%emt 0:02:28]} 39. Rxc5 {[%emt 0:00:53]} Rxd6 {[%emt 0:00:16]} 40. Rxa5 {[%emt 0:01:01]} f4+ {[%emt 0:00:53]} 41. Ke2 {[%emt 0:15:22]} Rc6 {[%emt 0:15:58]} 42. Kd3 {[%emt 0:01:14]} Kd6 {[%emt 0:00:44]} 43. Rd5+ {[%emt 0:00:17]} Ke6 {[%emt 0:00:14]} 44. Rb5 {[%emt 0:02:32]} Rd6+ {[%emt 0:00:36]} 45. Ke2 {[%emt 0:01:02]} Kf5 {[%emt 0:00:50]} 46. a5 {[%emt 0:01:57]} g4 {[%emt 0:01:18]} 47. fxg4+ {[%emt 0:01:07]} Kxg4 {[%emt 0:00:07]} 48. Rxe5 {[%emt 0:05:15]} f3+ {[%emt 0:00:31]} 49. Kf1 {[%emt 0:01:39]} Rd1+ {[%emt 0:02:02]} 50. Re1 {[%emt 0:00:26]} Rd4 {[%emt 0:00:53]} 51. a6 {[%emt 0:02:12]} Kg3 {[%emt 0:00:08]} 52. c5 {[%emt 0:00:49]} Rh4 {[%emt 0:00:26]} 53. Kg1 {[%emt 0:00:31]} f2+ {[%emt 0:00:06]} 54. Kf1 {[%emt 0:00:05]} fxe1=Q+ {[%emt 0:00:14]} 55. Kxe1 {[%emt 0:00:44]} Rh8 {[%emt 0:00:08]} 56. c6 {[%emt 0:00:20]} Ra8 {[%emt 0:00:09]} 57. c7 {[%emt 0:00:10]} Kf4 {[%emt 0:00:15]} 58. Kd2 {[%emt 0:00:16]} Ke5 {[%emt 0:00:08]} 0-1